[Event "BSV-SCK IM 2022"]
[Site "Berlin"]
[Date "2022.04.08"]
[Round "1.1"]
[White "Glek, Igor"]
[Black "Vogel, Constantin"]
[Result "1-0"]
[ECO "B03"]
[WhiteElo "2476"]
[BlackElo "2209"]
[Annotator "TA"]
[PlyCount "44"]
[EventDate "2022.04.08"]
[EventCountry "GER"]
[SourceTitle "playchess.com"]
[Source "ChessBase"]
[SourceQuality "1"]
[TimeControl "5400+30"]

{[%evp 17,31,27,56,35,30,23,22,24,24,22,24,14,12,13,10,0]} 1. e4 {[%emt 0:00:30][%cal Be2e4,Be4e5][%mdl 32]} Nf6 {[%emt 0:00:30][%cal Bg8f6,Bf6d5,Bd5b6][%mdl 32]} 2. e5 {[%emt 0:00:49]} Nd5 {[%emt 0:00:00]} 3. d4 {[%emt 0:00:23]} d6 {[%emt 0:00:00]} 4. c4 {[%emt 0:03:12]} Nb6 {[%emt 0:00:00]} 5. exd6 {[%emt 0:00:06]} cxd6 {[%emt 0:00:00][%cal Bc7d6,Bd6d5,Bd5e4][%mdl 32]} 6. Nc3 {[%emt 0:00:11]} g6 {[%emt 0:00:13]} 7. Be3 {[%emt 0:00:06]} Bg7 {[%emt 0:00:05]} 8. Rc1 {[%emt 0:00:06]} O-O {[%emt 0:00:16]} 9. b3 {[%emt 0:00:09]} Bf5 {[%emt 0:02:01]} 10. Nf3 {[%emt 0:04:27] B03: Alekhine's Defence: Four Pawns Attack.} d5 {[%emt 0:04:42]} 11. c5 {[%emt 0:02:51]} Nc8 {[%emt 0:00:05]} 12. h3 {[%emt 0:03:11]} Nc6 {[%emt 0:02:12]} 13. Bb5 {[%emt 0:00:29]} Be4 {[%emt 0:07:27]} 14. Nxe4 {[%emt 0:03:44]} dxe4 {[%emt 0:00:08]} 15. Bxc6 {[%emt 0:00:02]} bxc6 {[%emt 0:00:28]} 16. Ne5 {[%emt 0:04:12][%mdl 32768] [#]  Weighted Error Value: White=0.06 (flawless) /Black=0.05 (flawless) . Loss on time!?} {Predecessor:} Qd5 $146 17. O-O e6 18. Qe2 Ne7 19. Qa6 f6 20. Nc4 Qd7 21. Bf4 Nd5 22. Bd6 Rfc8 {0-1 (69) Karabalis,H (2263)-Konopka,M (2448) Germany 2009} 1-0

[Event "BSV-SCK IM 2022"]
[Site "Berlin"]
[Date "2022.04.08"]
[Round "1.2"]
[White "Ermitsch, Magnus"]
[Black "Mcgowan, Daniel"]
[Result "1-0"]
[ECO "C01"]
[WhiteElo "2127"]
[BlackElo "2101"]
[Annotator "ChessBase"]
[PlyCount "75"]
[EventDate "2022.04.08"]
[EventCountry "GER"]
[SourceTitle "playchess.com"]
[Source "ChessBase"]
[SourceQuality "1"]
[TimeControl "5400+30"]

1. e4 {[%emt 0:00:08]} e6 {[%emt 0:00:06]} 2. d4 {[%emt 0:00:07]} d5 {[%emt 0:00:05]} 3. Nc3 {[%emt 0:00:18]} Bb4 {[%emt 0:00:09]} 4. exd5 {[%emt 0:00:44]} exd5 {[%emt 0:00:13]} 5. Bd3 {[%emt 0:00:12]} c6 {[%emt 0:01:40]} 6. Nge2 {[%emt 0:02:07]} Ne7 {[%emt 0:02:05]} 7. Ng3 {[%emt 0:02:35]} O-O {[%emt 0:03:28]} 8. O-O {[%emt 0:01:19]} Nd7 {[%emt 0:07:37]} 9. Bg5 {[%emt 0:16:23]} f6 {[%emt 0:05:28]} 10. Bf4 {[%emt 0:00:51]} Re8 {[%emt 0:02:06]} 11. Nh5 {[%emt 0:09:35]} Nf8 {[%emt 0:07:42]} 12. Qf3 {[%emt 0:06:00]} Nfg6 {[%emt 0:06:07]} 13. Bh6 {[%emt 0:04:35]} gxh6 {[%emt 0:02:22]} 14. Qxf6 {[%emt 0:01:12]} Nf5 {[%emt 0:00:24]} 15. Bxf5 {[%emt 0:00:24]} Qxf6 {[%emt 0:00:20]} 16. Nxf6+ {[%emt 0:00:05]} Kf7 {[%emt 0:00:26]} 17. Bxg6+ {[%emt 0:00:26]} hxg6 {[%emt 0:00:03]} 18. Nxe8 {[%emt 0:00:11]} Kxe8 {[%emt 0:00:04]} 19. a3 {[%emt 0:00:36]} Bd6 {[%emt 0:00:09]} 20. Rae1+ {[%emt 0:01:35]} Kf7 {[%emt 0:00:02]} 21. Na2 {[%emt 0:00:34]} Bf5 {[%emt 0:00:42]} 22. Re2 {[%emt 0:00:16]} Be7 {[%emt 0:01:08]} 23. Nc1 {[%emt 0:00:57]} Bf6 {[%emt 0:00:14]} 24. c3 {[%emt 0:00:20]} Rc8 {[%emt 0:00:17]} 25. f3 {[%emt 0:02:42]} b6 {[%emt 0:00:52]} 26. g4 {[%emt 0:00:36]} Bd7 {[%emt 0:00:07]} 27. Nd3 {[%emt 0:00:46]} Kg7 {[%emt 0:00:17]} 28. Ne5 {[%emt 0:00:38]} Be8 {[%emt 0:00:07]} 29. b4 {[%emt 0:01:07]} c5 {[%emt 0:00:09]} 30. Rb1 {[%emt 0:22:20]} c4 {[%emt 0:01:42]} 31. b5 {[%emt 0:01:30]} Rc7 {[%emt 0:01:39]} 32. a4 {[%emt 0:00:14]} Re7 {[%emt 0:00:34]} 33. f4 {[%emt 0:00:35]} Bd7 {[%emt 0:00:54]} 34. Re3 {[%emt 0:01:24]} Bh4 {[%emt 0:00:31]} 35. Rb2 {[%emt 0:00:20]} Bc8 {[%emt 0:00:15]} 36. Rbe2 {[%emt 0:00:07]} Rc7 {[%emt 0:00:42]} 37. h3 {[%emt 0:02:46]} Bf6 {[%emt 0:01:24]} 38. Kg2 {[%emt 0:00:16]} 1-0

[Event "BSV-SCK IM 2022"]
[Site "Berlin"]
[Date "2022.04.08"]
[Round "1.3"]
[White "Mirzoev, Emil"]
[Black "Schmidek, Emil"]
[Result "1/2-1/2"]
[ECO "D31"]
[WhiteElo "2460"]
[BlackElo "2383"]
[Annotator "ChessBase"]
[PlyCount "118"]
[EventDate "2022.04.08"]
[EventCountry "GER"]
[SourceTitle "playchess.com"]
[Source "ChessBase"]
[SourceQuality "1"]
[TimeControl "5400+30"]

1. c4 {[%emt 0:00:23]} e6 {[%emt 0:00:06]} 2. Nc3 {[%emt 0:00:38]} d5 {[%emt 0:00:07]} 3. d4 {[%emt 0:00:03]} a6 {[%emt 0:00:06]} 4. cxd5 {[%emt 0:00:24]} exd5 {[%emt 0:00:09]} 5. Bf4 {[%emt 0:00:02]} Nf6 {[%emt 0:00:12]} 6. e3 {[%emt 0:00:04]} c5 {[%emt 0:00:10]} 7. Nge2 {[%emt 0:00:19]} Nc6 {[%emt 0:05:06]} 8. g3 {[%emt 0:00:13]} Bg4 {[%emt 0:17:49]} 9. Bg2 {[%emt 0:00:51]} cxd4 {[%emt 0:00:24]} 10. exd4 {[%emt 0:00:09]} Be7 {[%emt 0:02:14]} 11. h3 {[%emt 0:06:31]} Bxe2 {[%emt 0:01:44]} 12. Nxe2 {[%emt 0:03:01]} O-O {[%emt 0:06:46]} 13. O-O {[%emt 0:00:19]} Qb6 {[%emt 0:05:28]} 14. Rb1 {[%emt 0:06:44]} Rad8 {[%emt 0:10:46]} 15. Be3 {[%emt 0:00:44]} Rfe8 {[%emt 0:04:05]} 16. b4 {[%emt 0:05:25]} Ne4 {[%emt 0:08:47]} 17. a3 {[%emt 0:04:08]} Bf6 {[%emt 0:04:53]} 18. Qd3 {[%emt 0:03:45]} Qb5 {[%emt 0:06:34]} 19. Qxb5 {[%emt 0:02:06]} axb5 {[%emt 0:00:02]} 20. Rfd1 {[%emt 0:00:37]} Rd7 {[%emt 0:03:31]} 21. Rbc1 {[%emt 0:02:52]} Ra8 {[%emt 0:07:13]} 22. Rd3 {[%emt 0:01:53]} Ne7 {[%emt 0:00:27]} 23. Nf4 {[%emt 0:04:11]} Nd6 {[%emt 0:01:50]} 24. Nxd5 {[%emt 0:02:36]} Nc4 {[%emt 0:06:03]} 25. Nxf6+ {[%emt 0:07:00]} gxf6 {[%emt 0:00:03]} 26. d5 {[%emt 0:00:05]} Rad8 {[%emt 0:02:19]} 27. d6 {[%emt 0:00:36]} Nc6 {[%emt 0:02:55]} 28. Bf4 {[%emt 0:02:11]} N6e5 {[%emt 0:01:14]} 29. Rd5 {[%emt 0:00:55]} Nxa3 {[%emt 0:02:10]} 30. Rc7 {[%emt 0:09:08]} Nac4 {[%emt 0:01:11]} 31. Bxe5 {[%emt 0:03:15]} fxe5 {[%emt 0:00:47]} 32. Rxb5 {[%emt 0:00:02]} Nxd6 {[%emt 0:00:17]} 33. Rxd7 {[%emt 0:00:06]} Rxd7 {[%emt 0:00:05]} 34. Rxe5 {[%emt 0:00:02]} Kg7 {[%emt 0:01:20]} 35. Rd5 {[%emt 0:00:55]} Kf6 {[%emt 0:00:24]} 36. f4 {[%emt 0:01:55]} Ke6 {[%emt 0:00:36]} 37. Rh5 {[%emt 0:02:34]} Nc4 {[%emt 0:00:29]} 38. Rxh7 {[%emt 0:00:25]} Rd1+ {[%emt 0:00:26]} 39. Kf2 {[%emt 0:00:03]} Rd2+ {[%emt 0:00:06]} 40. Kf3 {[%emt 0:00:05]} Rd3+ {[%emt 0:00:38]} 41. Ke4 {[%emt 0:04:03]} Rxg3 {[%emt 0:00:00]} 42. Kd4 {[%emt 0:00:00]} Rxg2 {[%emt 0:00:00]} 43. Kxc4 {[%emt 0:00:00]} Rf2 {[%emt 0:00:00]} 44. Kc5 {[%emt 0:00:00]} Rxf4 {[%emt 0:00:00]} 45. b5 {[%emt 0:00:00]} Rf1 {[%emt 0:00:00]} 46. Kb6 {[%emt 0:00:00]} f5 {[%emt 0:00:00]} 47. Kxb7 {[%emt 0:00:00]} f4 {[%emt 0:00:00]} 48. Rh8 {[%emt 0:00:00]} f3 {[%emt 0:00:00]} 49. Rf8 {[%emt 0:00:00]} f2 {[%emt 0:00:00]} 50. b6 {[%emt 0:00:00]} Ke5 {[%emt 0:00:00]} 51. h4 {[%emt 0:00:00]} Ke4 {[%emt 0:00:00]} 52. h5 {[%emt 0:00:00]} Ke3 {[%emt 0:00:00]} 53. Kc7 {[%emt 0:00:00]} Rc1+ {[%emt 0:00:00]} 54. Kd7 {[%emt 0:00:00]} Rd1+ {[%emt 0:01:06]} 55. Kc8 {[%emt 0:00:00]} Rc1+ {[%emt 0:00:15]} 56. Kb8 {[%emt 0:00:00]} f1=Q {[%emt 0:00:36]} 57. Rxf1 {[%emt 0:00:00]} Rxf1 {[%emt 0:00:05]} 58. b7 {[%emt 0:00:00]} Rf8+ {[%emt 0:00:05]} 59. Ka7 {[%emt 0:00:00]} Kf4 {[%emt 0:00:06]} 1/2-1/2

[Event "BSV-SCK IM 2022"]
[Site "Berlin"]
[Date "2022.04.08"]
[Round "1.4"]
[White "Glantz, Robert"]
[Black "Eugene, Floryan"]
[Result "1-0"]
[ECO "A48"]
[WhiteElo "2318"]
[BlackElo "2404"]
[Annotator "TA"]
[PlyCount "128"]
[EventDate "2022.04.08"]
[EventCountry "GER"]
[SourceTitle "playchess.com"]
[Source "ChessBase"]
[SourceQuality "1"]
[TimeControl "5400+30"]

{[%evp 12,128,31,10,7,0,11,10,12,4,12,7,10,10,10,10,16,0,13,0,37,37,52,51,54,38,41,40,90,50,46,32,81,64,71,51,90,41,73,75,66,33,34,0,0,0,30,0,0,0,88,108,152,135,144,145,152,135,231,130,139,134,118,145,141,141,130,133,159,155,161,159,160,172,161,108,105,99,96,-2,0,0,0,0,0,0,0,-24,0,-185,86,73,95,8,403,212,231,231,324,290,276,184,184,179,183,18,21,0,183,186,155,-8,0,0,12,-8,10,14,59]} 1. d4 {[%emt 0:00:11]} Nf6 {[%emt 0:01:03]} 2. Nf3 {[%emt 0:00:38]} g6 {[%emt 0:02:50]} 3. Bg5 {[%emt 0:00:43]} Bg7 {[%emt 0:07:01]} 4. Nbd2 {[%emt 0:01:51]} O-O {[%emt 0:08:34]} 5. c3 {[%emt 0:00:21]} d6 {[%emt 0:03:30]} 6. e4 {[%emt 0:00:28]} Nc6 {[%emt 0:01:28]} 7. Bb5 {[%emt 0:01:33]} a6 {[%emt 0:12:09] A48: 1 d4 Nf6 2 Nf3 g6: Torre, London and Colle Systems.} 8. Be2 {[%emt 0:00:12]} e5 {[%emt 0:01:40]} 9. dxe5 {[%emt 0:00:20]} dxe5 {[%emt 0:01:16]} 10. O-O {[%emt 0:11:02]} h6 {[%emt 0:09:42]} 11. Bh4 {[%emt 0:05:33] [#]} Qe7 $146 {[%emt 0:06:29]} ({Predecessor:} 11... Qe8 12. Qc2 Nh5 13. Nc4 Nf4 14. Ne3 Nxe2+ 15. Qxe2 f5 16. exf5 gxf5 17. Nc4 e4 {0-1 (41) Grigorov,G (2511)-Melkumyan,H (2649) Chess.com INT 2022}) 12. Qc2 {[%emt 0:04:25]} g5 {[%emt 0:02:10]} 13. Bg3 {[%emt 0:00:13]} Nh5 {[%emt 0:00:38]} 14. Nc4 {[%emt 0:21:21]} (14. Bxe5 $2 Nxe5 15. Nxe5 Nf4 $19) 14... Nf4 {[%emt 0:11:39]} 15. Ne3 {[%emt 0:02:17] Against f5} Qc5 {[%emt 0:01:15]} 16. Bc4 {[%emt 0:08:22]} a5 {[%emt 0:01:26]} 17. a4 {[%emt 0:03:51]} Ne7 {[%emt 0:12:48]} 18. Qb3 {[%emt 0:05:10]} Kh8 {[%emt 0:03:00]} 19. Rfe1 {[%emt 0:07:06][%cal Bf1e1,Be1d1,Bd1d7][%mdl 32]} (19. Bxf7 $2 Rxf7 $1 {[%mdl 512]} 20. Bxf4 (20. Qxf7 $2 Be6 $19) 20... Rxf4 $19) 19... c6 {[%emt 0:01:01]} (19... f5 $14) 20. Qa3 {[%emt 0:05:40]} (20. Bxf7 $2 Rxf7 $1 {[%mdl 512]} 21. Qc4 (21. Qxf7 $2 Be6 $19) 21... Qxc4 22. Nxc4 Neg6 $19) 20... Qxa3 {[%emt 0:00:56]} 21. Rxa3 {[%emt 0:00:06]} Bd7 {[%emt 0:03:17]} (21... f5 $14 {might be stronger.}) 22. Rd1 $16 {[%emt 0:03:37]} Be8 {[%emt 0:06:36]} 23. Bf1 {[%emt 0:03:02]} (23. h4 $5 {[%cal Rh4g5]}) 23... f6 {[%emt 0:00:28]} 24. Nc4 {[%emt 0:03:57]} (24. Nd2 $16) 24... Bg6 {[%emt 0:00:58]} 25. Rd7 {[%emt 0:01:56][%csl LRb7,LRe7]} Nc8 {[%emt 0:00:16]} 26. Nfd2 {[%emt 0:01:12]} (26. Bxf4 $5 gxf4 27. Nfd2 $14 (27. Rxb7 Rd8 $14)) 26... Rf7 {[%emt 0:00:06]} 27. Rd8+ {[%emt 0:05:24]} Rf8 {[%emt 0:00:03]} 28. Rd7 {[%emt 0:01:01]} Rf7 {[%emt 0:00:57]} 29. Rd8+ {[%emt 0:00:22]} Rf8 {[%emt 0:00:02]} 30. Rd7 {[%emt 0:01:37]} Ne6 {[%emt 0:00:20]} (30... Rf7 $11 31. Rxf7 (31. Rd8+ Rf8 $14) 31... Bxf7) 31. Rxb7 {[%emt 0:00:57]} Nc5 {[%emt 0:00:05]} 32. Rc7 {[%emt 0:00:15]} Nxe4 {[%emt 0:00:11]} 33. Nxe4 {[%emt 0:00:58]} Bxe4 {[%emt 0:00:03]} 34. Rb3 {[%emt 0:01:00]} Rd8 {[%emt 0:01:00]} (34... Re8 $16 {keeps fighting.} 35. f3 Bd5) 35. f3 {[%emt 0:00:23]} (35. Rbb7 $18 Bf8 36. Rf7) 35... Bd5 {[%emt 0:01:48]} 36. Rbb7 {[%emt 0:00:12]} Bf8 {[%emt 0:00:06]} 37. Bf2 {[%emt 0:00:50] Inhibits c5.} Be6 {[%emt 0:00:12]} 38. h4 {[%emt 0:00:39]} (38. Rxc6 $6 Bd5 39. Rbc7 Bxc6 40. Rxc6 Kg7 $11) 38... Rd1 {[%emt 0:00:45]} 39. Ne3 {[%emt 0:00:14]} (39. Rxc6 Bxc4 40. Rxc4 Nd6 $17) 39... Rb1 {[%emt 0:01:03]} 40. Rxc6 {[%emt 0:00:32]} Nd6 {[%emt 0:00:47]} 41. Rbb6 {[%emt 0:00:00]} Rd8 {[%emt 0:00:00]} 42. g4 {[%emt 0:00:00]} Bf7 {[%emt 0:00:00]} 43. hxg5 {[%emt 0:00:00]} (43. Kg2 $18) 43... hxg5 {[%emt 0:00:00]} 44. Rc7 {[%emt 0:00:00][%cal Ob6d6] Threatens to win with Rxd6!} Bg6 {[%emt 0:00:00]} 45. c4 {[%emt 0:00:00]} (45. Ra7 $16) 45... e4 {[%emt 0:00:00]} 46. c5 {[%emt 0:02:32]} Ne8 {[%emt 0:00:00]} 47. Rcc6 $36 {[%emt 0:00:21][%mdl 2048] White is pushing.} exf3 {[%emt 0:00:00] aiming for ...Bd3.} 48. Rb3 {[%emt 0:01:28]} Bf7 {[%emt 0:00:03]} 49. Rb5 {[%emt 0:00:09]} Rc1 {[%emt 0:01:46]} 50. Kh2 $2 {[%emt 0:00:30]} (50. Rxa5 $11 Bd5 51. Rca6 (51. Nxd5 $2 Rxd5 52. Be3 Rc2 $19)) 50... Bg6 $2 {[%emt 0:01:24]} (50... Rd2 51. Kg3 $11) (50... Bd5 $19 51. Rcb6 (51. Nxd5 $2 Rxf1 52. Ne3 Rxf2+ $19) 51... Bxc5 52. Rxc5 Rxc5) 51. Bc4 $1 {[%emt 0:00:42][%cal Bf1c4,Bc4d5,Bd5f3][%mdl 32]} Bg7 {[%emt 0:02:06][%cal Of6f5]} (51... Rd2 $2 52. Kg3 $18) 52. Kg3 {[%emt 0:00:16]} (52. Bd5 Bd3) ({Better is} 52. Rxa5 $16 {Black must now prevent b3.} Rd4 53. Bf1) 52... Kh7 $2 {[%emt 0:00:57][%mdl 8192]} (52... f5 $1 $11 {and Black is okay.} 53. gxf5 (53. Rxg6 f4+ 54. Kxf3 fxe3 $11) 53... Bh5) 53. Kxf3 {[%emt 0:00:21]} (53. b3 $142) 53... Rd4 $18 {[%emt 0:00:07] Strongly threatening ...Be4+.} 54. Bd5 {[%emt 0:00:56] Against Be4+} Rf4+ {[%emt 0:00:57]} (54... Rxa4 $142 55. Rb7 Rf4+ 56. Ke2 Rb4 57. Rxb4 axb4) 55. Kg3 {[%emt 0:00:20]} Rxa4 {[%emt 0:00:13]} 56. Kg2 {[%emt 0:00:50]} Rd4 {[%emt 0:00:10][%cal Od4d5] Hoping for ...Rxd5!} 57. Bf3 {[%emt 0:00:24]} ({Don't go for} 57. Rxa5 $2 Rxd5 $1 58. Nxd5 Be4+ 59. Kh3 Bxd5 $17) 57... Rd2 {[%emt 0:00:47]} 58. Rb8 $2 {[%emt 0:00:32]} ({White should try} 58. Kg3 $18) 58... Bf8 $11 {[%emt 0:00:23]} 59. Rb5 {[%emt 0:00:32]} Ng7 $2 {[%emt 0:00:34]} (59... Bg7 $11 {and Black stays safe.}) 60. Rxa5 $18 {[%emt 0:00:28]} Rxb2 {[%emt 0:00:16] [#]} 61. Rb6 $2 {[%emt 0:00:35]} (61. Nd5 $1 $16 {[%cal Rd5f6]} Ne8 62. Kg3) 61... Rd2 {[%emt 0:00:47] The position is equal.} 62. Rc6 {[%emt 0:00:29]} Rc3 {[%emt 0:00:32]} 63. Kg3 {[%emt 0:00:23] And now Be1 would win.} Rdd3 {[%emt 0:00:46]} 64. Rxf6 {[%emt 0:00:39] Active counter play!} Bxc5 {[%emt 0:01:04] Weighted Error Value: White=0.34/Black=0.34} (64... Be7 $5 {[%cal Re7f6]} 65. Rxg6 Kxg6 66. Be4+ Kf7 67. Bxd3 Rxd3 $14) 1-0

[Event "BSV-SCK IM 2022"]
[Site "Berlin"]
[Date "2022.04.08"]
[Round "1.5"]
[White "Eilenberg, Jonas"]
[Black "Muse, Drazen"]
[Result "1/2-1/2"]
[ECO "D12"]
[WhiteElo "2135"]
[BlackElo "2325"]
[Annotator "ChessBase"]
[PlyCount "41"]
[EventDate "2022.04.08"]
[EventCountry "GER"]
[SourceTitle "playchess.com"]
[Source "ChessBase"]
[SourceQuality "1"]
[TimeControl "5400+30"]

1. d4 {[%emt 0:00:04]} d5 {[%emt 0:00:14]} 2. Nf3 {[%emt 0:00:07]} Bf5 {[%emt 0:00:06]} 3. e3 {[%emt 0:00:35]} e6 {[%emt 0:00:19]} 4. c4 {[%emt 0:01:02]} c6 {[%emt 0:01:20]} 5. Nc3 {[%emt 0:00:57]} Nd7 {[%emt 0:01:19]} 6. Be2 {[%emt 0:03:12]} Be7 {[%emt 0:00:27]} 7. O-O {[%emt 0:00:25]} h6 {[%emt 0:01:04]} 8. b3 {[%emt 0:03:54]} Ngf6 {[%emt 0:00:19]} 9. Bb2 {[%emt 0:00:20]} O-O {[%emt 0:00:06]} 10. Rc1 {[%emt 0:02:43]} a6 {[%emt 0:02:23]} 11. h3 {[%emt 0:07:10]} Re8 {[%emt 0:01:08]} 12. Bd3 {[%emt 0:06:55]} Bxd3 {[%emt 0:01:14]} 13. Qxd3 {[%emt 0:00:02]} Bf8 {[%emt 0:04:17]} 14. e4 {[%emt 0:08:34]} dxe4 {[%emt 0:01:52]} 15. Nxe4 {[%emt 0:00:14]} Nxe4 {[%emt 0:00:28]} 16. Qxe4 {[%emt 0:00:02]} Qa5 {[%emt 0:00:46]} 17. Qc2 {[%emt 0:05:32]} Ba3 {[%emt 0:01:24]} 18. Bc3 {[%emt 0:03:38]} Bb4 {[%emt 0:00:07]} 19. Bb2 {[%emt 0:00:27]} Ba3 {[%emt 0:00:07]} 20. Bc3 {[%emt 0:00:05]} Bb4 {[%emt 0:00:04]} 21. Bb2 {[%emt 0:00:06]} 1/2-1/2

[Event "BSV-SCK IM 2022"]
[Site "Berlin"]
[Date "2022.04.09"]
[Round "2.1"]
[White "Vogel, Constantin"]
[Black "Muse, Drazen"]
[Result "0-1"]
[WhiteElo "2209"]
[BlackElo "2325"]
[Annotator "TA"]
[PlyCount "30"]
[EventDate "2022.04.08"]
[EventCountry "GER"]
[SourceTitle "playchess.com"]
[Source "ChessBase"]
[SourceQuality "1"]
[TimeControl "5400+30"]

{[%evp 9,9,-50]} 1. Nf3 {[%emt 0:00:16]} d5 {[%emt 0:00:35]} 2. c4 {[%emt 0:00:22]} d4 {[%emt 0:00:25]} 3. e3 {[%emt 0:01:27]} Nc6 {[%emt 0:03:46]} 4. Qa4 {[%emt 0:15:45]} Bd7 {[%emt 0:00:44]} 5. b4 {[%emt 0:02:06] [#] Not much happened in this game.} {Predecessor:} dxe3 $146 6. fxe3 {A09: Réti Opening: 1 Nf3 d5 2 c4.} e5 7. Qb5 a6 8. Qa4 e4 9. Ng1 Nxb4 10. Qb3 Bd6 11. Bb2 Qh4+ 12. g3 Bxg3+ 13. hxg3 Qxh1 14. Qxb4 Qxg1 15. Qxb7 Qxg3+ {0-1 (15) Fluvia Poyatos,J (2508)-Narciso Dublan,M (2546) L'Estartit 2008} 0-1

[Event "BSV-SCK IM 2022"]
[Site "Berlin"]
[Date "2022.04.09"]
[Round "2.2"]
[White "Eugene, Floryan"]
[Black "Eilenberg, Jonas"]
[Result "1-0"]
[ECO "C06"]
[WhiteElo "2404"]
[BlackElo "2135"]
[Annotator "TA"]
[PlyCount "63"]
[EventDate "2022.04.08"]
[EventCountry "GER"]
[SourceTitle "playchess.com"]
[Source "ChessBase"]
[SourceQuality "1"]
[TimeControl "5400+30"]

{[%evp 19,63,0,0,-20,-24,-57,-65,-71,-33,-27,-12,-43,-29,-44,-27,-75,-84,-108,-57,-112,-52,-46,-45,-71,43,-12,57,0,40,0,0,0,268,144,318,103,678,519,29981,29982,29982,29982,29996,172,29997,29998]} 1. e4 {[%emt 0:00:09][%cal Be2e4,Be4e5][%mdl 32] Edouard,Romain} e6 {[%emt 0:00:08]} 2. d4 {[%emt 0:00:06]} d5 {[%emt 0:00:05]} 3. Nd2 {[%emt 0:00:53]} Nf6 {[%emt 0:00:19]} 4. e5 {[%emt 0:00:10]} Nfd7 {[%emt 0:00:06]} 5. Bd3 {[%emt 0:00:09]} c5 {[%emt 0:00:09]} 6. c3 {[%emt 0:00:05]} Nc6 {[%emt 0:00:17][%cal Bb8c6,Bc6d4,Bd4f3][%mdl 32]} 7. Ngf3 {[%emt 0:02:37]} Be7 {[%emt 0:01:18]} 8. O-O {[%emt 0:01:30]} a5 {[%emt 0:00:40]} 9. Re1 {[%emt 0:15:10] 9.a4 is the fancy move.} cxd4 {[%emt 0:11:28]} 10. cxd4 {[%emt 0:14:08]} Qb6 {[%emt 0:00:50]} 11. Nb1 {[%emt 0:11:51] C06: French Tarrasch: 3...Nf6 4 e5 Nfd7 5 Bd3 main lines.} Nxd4 {[%emt 0:08:13] [#]} 12. Nc3 $146 {[%emt 0:10:41]} ({Predecessor:} 12. Nxd4 Qxd4 13. Nc3 Qb6 14. Qg4 Kf8 15. Nb5 Nc5 16. Be3 Bd7 17. Nd6 Bxd6 18. exd6 Rc8 {½-½ (58) Bauer,C (2679)-Edouard,R (2616) Nancy 2012 CBM 147 [Edouard,Romain]}) 12... Nxf3+ $1 {[%emt 0:07:56]} 13. Qxf3 {[%emt 0:00:08] Black is slightly better.} O-O {[%emt 0:03:36]} 14. Qg3 {[%emt 0:07:30]} g6 {[%emt 0:16:10]} 15. h4 {[%emt 0:03:18]} Qb4 {[%emt 0:17:34]} 16. Bf4 {[%emt 0:07:17]} Nc5 $1 {[%emt 0:08:08]} 17. Bf1 {[%emt 0:00:17]} (17. Rad1 $11 {was preferrable.}) 17... Bd7 $17 {[%emt 0:01:44]} 18. Rad1 {[%emt 0:06:28]} Bc6 {[%emt 0:02:53]} (18... Qxb2 $17 19. Rb1 Qc2) 19. h5 {[%emt 0:00:43]} ({White should play} 19. Rd2 $15) 19... d4 {[%emt 0:04:01]} ({Better is} 19... Qxb2 $17 20. Re2 Qb6) 20. a3 $15 {[%emt 0:10:35]} Qxb2 {[%emt 0:00:54]} 21. Rxd4 {[%emt 0:00:09]} Nb3 {[%emt 0:02:08] [#]} (21... Qxa3 22. Nd5 Nd7 23. Bc1 $14) (21... Rfd8 $17 22. Rxd8+ Bxd8) 22. Rd3 {[%emt 0:03:10]} ({White should try} 22. Re2 $1 $14 Qxa3 (22... Qa1 23. Rd3) 23. Rc4) 22... a4 {[%emt 0:03:00]} (22... Bxa3 $2 23. Re2 Nd2 24. Rexd2 $18) (22... Qxa3 $11 23. Nb5 Qb4) 23. Bg5 {[%emt 0:00:48]} Qxa3 {[%emt 0:00:54]} 24. Ne4 {[%emt 0:02:37]} (24. Qh4 $5 {[%cal Rg5e7]} Bxg5 25. Qxg5 $11) 24... Bxe4 {[%emt 0:00:49]} 25. Rxe4 {[%emt 0:00:01] Hoping for Bh6.} Rfe8 $2 {[%emt 0:05:35][%mdl 8192]} (25... Rfd8 $11 {and Black stays safe.} 26. hxg6 fxg6 27. Rxd8+ Bxd8 28. Bxd8 Rxd8) 26. Rd7 {[%emt 0:01:06]} ({Only move:} 26. hxg6 $18 fxg6 27. Rd7) 26... Bxg5 $2 {[%emt 0:03:08] [#]} (26... Nd2 $16 {was called for.} 27. Qxa3 (27. Bxd2 Qxg3 28. fxg3 a3 $11) 27... Bxa3 28. Bxd2 Bc5) 27. Qxg5 $2 {[%emt 0:00:51]} (27. hxg6 $1 $18 {is the precise move to win.} hxg6 28. Qxg5) 27... Qf8 {[%emt 0:00:53][%mdl 8192]} (27... Nc5 $16 28. hxg6 Nxd7 29. gxf7+ Kh8 30. fxe8=N (30. Rg4 Qf8 $16) 30... Rxe8) 28. Rf4 $18 {[%emt 0:00:20]} Nc5 {[%emt 0:00:41]} (28... Nd4 $18 29. Rfxd4 h6) 29. Rdxf7 {[%emt 0:00:20]} Qxf7 {[%emt 0:00:07]} 30. Rxf7 {[%emt 0:00:04]} Kxf7 {[%emt 0:00:04]} 31. Qf6+ {[%emt 0:00:03]} Kg8 {[%emt 0:00:07]} 32. h6 {[%emt 0:00:04] Weighted Error Value: White=0.39/Black=0.94} 1-0